fUSD/lending_fUSD_20240322
["ID","MTS","AMOUNT","RATE_DAILY","PERIOD"]
[320087681,1711144249999,-500.0,0.00021917,2]
[320087682,1711144250010,-619.48,0.00021917,2]
[320087683,1711144250019,-500.0,0.00021917,2]
[320087684,1711144250030,-500.0,0.00021917,2]
[320087685,1711144250040,-2546.2,0.00021917,2]
[320087686,1711144250050,-1048.4,0.00021917,2]
[320087687,1711144250060,-500.0,0.00021917,2]
[320087688,1711144250070,-500.0,0.00021917,2]
[320087689,1711144250080,-500.0,0.00021917,2]
[320087690,1711144250090,-500.0,0.00021917,2]
[320087691,1711144250099,-500.0,0.00021917,2]
[320087692,1711144250109,-500.0,0.00021917,2]
[320087693,1711144250119,-500.0,0.00021917,2]
[320087694,1711144250129,-920.15,0.00021917,2]
[320087695,1711144250138,-959.22,0.00021917,2]
[320087696,1711144250148,-500.0,0.00021917,2]
[320087697,1711144250157,-1138.46,0.00021917,2]
[320087698,1711144250166,-609.21,0.00021917,2]
[320087699,1711144250176,-500.0,0.00021917,2]
[320087700,1711144250186,-500.0,0.00021917,2]
[320087701,1711144250196,-500.0,0.00021917,2]
[320087702,1711144250206,-500.0,0.00021917,2]
[320087703,1711144250216,-1190.96,0.00021917,2]
[320087704,1711144250226,-580.02,0.00021917,2]
[320087705,1711144250236,-217.09058909,0.00021917,2]
[320087706,1711144250245,-1355.41,0.00021917,2]
[320087707,1711144250255,-174.11915439,0.00021917,2]
[320087708,1711144250265,-500.0,0.00021917,2]
[320087709,1711144250274,-500.0,0.00021917,2]
[320087710,1711144250284,-500.0,0.00021917,2]
[320087711,1711144250293,-500.0,0.00021917,2]
[320087712,1711144250303,-962.72,0.00021917,2]
[320087713,1711144250313,-500.0,0.00021917,2]
[320087714,1711144250323,-578.6,0.00021917,2]
[320087715,1711144250333,-500.0,0.00021917,2]
[320087716,1711144250343,-500.0,0.00021917,2]
[320087717,1711144250352,-245.32388265,0.00021917,2]
[320087718,1711144250362,-990.55,0.00021917,2]
[320087719,1711144250372,-615.53,0.00021917,2]
[320087720,1711144250381,-500.0,0.00021917,2]
[320087721,1711144250390,-500.0,0.00021917,2]
[320087722,1711144250400,-500.0,0.00021917,2]
[320087723,1711144250409,-571.19,0.00021917,2]
[320087724,1711144250420,-500.0,0.00021917,2]
[320087725,1711144250429,-854.52,0.00021917,2]
[320087726,1711144250439,-500.0,0.00021917,2]
[320087727,1711144250448,-500.0,0.00021917,2]
[320087728,1711144250457,-500.0,0.00021917,2]
[320087729,1711144250467,-500.0,0.00021917,2]
[320087730,1711144250477,-500.0,0.00021917,2]
[320087731,1711144250486,-500.0,0.00021917,2]
[320087732,1711144250496,-500.0,0.00021917,2]
[320087733,1711144250506,-500.0,0.00021917,2]
[320087734,1711144250521,-507.1,0.00021917,2]
[320087735,1711144250530,-870.26,0.00021917,2]
[320087736,1711144250539,-524.89,0.00021917,2]
[320087737,1711144250549,-500.0,0.00021917,2]
[320087738,1711144250561,-500.0,0.00021917,2]
[320087739,1711144250571,-500.0,0.00021917,2]
[320087740,1711144250581,-2240.22,0.00021917,2]
[320087741,1711144250590,-500.0,0.00021917,2]
[320087742,1711144250599,-500.0,0.00021917,2]
[320087743,1711144250609,-1147.43,0.00021917,2]
[320087744,1711144250620,-513.05,0.00021917,2]
[320087745,1711144250629,-505.15963274,0.00021917,2]
[320087746,1711144250639,-1685.01790421,0.00021917,2]
[320087747,1711144250657,-153.30209579,0.00021917,2]
[320087748,1711144250667,-500.0,0.00021917,2]
[320087749,1711144250676,-500.0,0.00021917,2]
[320087750,1711144250685,-500.0,0.00021917,2]
[320087751,1711144250695,-649.51,0.00021917,2]
[320087752,1711144250706,-500.0,0.00021917,2]
[320087753,1711144250715,-500.0,0.00021917,2]
[320087754,1711144250725,-500.0,0.00021917,2]
[320087755,1711144250734,-500.0,0.00021917,2]
[320087756,1711144250743,-205.69123585,0.00021917,2]
[320087757,1711144250756,-515.30705259,0.00021917,2]
[320087758,1711144250773,-502.9301095,0.00021917,2]
[320087759,1711144250782,-2410.93,0.00021917,2]
[320087760,1711144250792,-500.0,0.00021917,2]
[320087761,1711144250802,-849.23,0.00021917,2]
[320087762,1711144250811,-500.0,0.00021917,2]
[320087763,1711144250820,-590.11,0.00021917,2]
[320087764,1711144250830,-749.53,0.00021917,2]
[320087765,1711144250839,-785.05,0.00021917,2]
[320087766,1711144250849,-414.82482089,0.00021917,2]
[320087767,1711144250858,-500.0,0.00021917,2]
[320087768,1711144250867,-500.0,0.00021917,2]
[320087769,1711144250877,-500.0,0.00021917,2]
[320087770,1711144250886,-500.0,0.00021917,2]
[320087771,1711144250895,-4426.88468538,0.00021917,2]
[320087772,1711144250908,-431.79686796,0.00021917,2]
[320087773,1711144250925,-2418.09844666,0.00021917,2]
[320087774,1711144250935,-500.0,0.00021917,2]
[320087775,1711144250944,-500.0,0.00021917,2]
[320087776,1711144250953,-500.0,0.00021917,2]
[320087777,1711144250963,-835.83,0.00021917,2]
[320087778,1711144250972,-500.0,0.00021917,2]
[320087779,1711144250982,-500.0,0.00021917,2]
[320087780,1711144250991,-500.0,0.00021917,2]
[320087781,1711144251000,-1129.05,0.00021917,2]
[320087782,1711144251010,-500.0,0.00021917,2]
[320087783,1711144251019,-750.44,0.00021917,2]
[320087784,1711144251029,-1562.68,0.00021917,2]
[320087785,1711144251038,-500.0,0.00021917,2]
[320087786,1711144251047,-500.0,0.00021917,2]
[320087787,1711144251056,-500.0,0.00021917,2]
[320087788,1711144251066,-500.0,0.00021917,2]
[320087789,1711144251075,-500.0,0.00021917,2]
[320087790,1711144251084,-500.0,0.00021917,2]
[320087791,1711144251094,-1368.22,0.00021917,2]
[320087792,1711144251104,-574.24,0.00021917,2]
[320087793,1711144251114,-500.0,0.00021917,2]
[320087794,1711144251123,-500.0,0.00021917,2]
[320087795,1711144251132,-500.0,0.00021917,2]
[320087796,1711144251142,-648.78,0.00021917,2]
[320087797,1711144251151,-501.15775447,0.00021917,2]
[320087798,1711144251160,-500.0,0.00021917,2]
[320087799,1711144251170,-2674.73,0.00021917,2]
[320087800,1711144251180,-500.0,0.00021917,2]
[320087801,1711144251189,-1378.84,0.00021917,2]
[320087802,1711144251199,-3073.33,0.00021917,2]
[320087803,1711144251208,-758.07,0.00021917,2]
[320087804,1711144251218,-500.0,0.00021917,2]
[320087805,1711144251228,-500.0,0.00021917,2]
[320087806,1711144251237,-500.71967971,0.00021917,2]
[320087807,1711144251247,-500.0,0.00021917,2]
[320087808,1711144251256,-500.0,0.00021917,2]
[320087809,1711144251266,-500.0,0.00021917,2]
[320087810,1711144251276,-845.36,0.00021917,2]
[320087811,1711144251285,-501.55052978,0.00021917,2]
[320087812,1711144251295,-599.66,0.00021917,2]
[320087813,1711144251304,-500.0,0.00021917,2]
[320087814,1711144251313,-500.0,0.00021917,2]
[320087815,1711144251323,-1139.3,0.00021917,2]
[320087816,1711144251333,-500.0,0.00021917,2]
[320087817,1711144251342,-1101.9,0.00021917,2]
[320087818,1711144251352,-500.0,0.00021917,2]
[320087819,1711144251361,-500.0,0.00021917,2]
[320087820,1711144251371,-1802.49,0.00021917,2]
[320087821,1711144251381,-1108.53,0.00021917,2]
[320087822,1711144251390,-500.0,0.00021917,2]
[320087823,1711144251401,-1703.5,0.00021917,2]
[320087824,1711144251410,-639.95,0.00021917,2]
[320087825,1711144251420,-1128.94,0.00021917,2]
[320087826,1711144251430,-500.7047499,0.00021917,2]
[320087827,1711144251439,-1377.74,0.00021917,2]
[320087828,1711144251449,-2682.2,0.00021917,2]
[320087829,1711144251459,-500.0,0.00021917,2]
[320087830,1711144251468,-152.15079305,0.00021917,2]
[320087831,1711144251478,-500.0,0.00021917,2]
[320087832,1711144251488,-3884.26,0.00021917,2]
[320087833,1711144251499,-1603.18,0.00021917,2]
[320087834,1711144251508,-2964.71,0.00021917,2]
[320087835,1711144251518,-500.0,0.00021917,2]
[320087836,1711144251532,-1221.14,0.00021917,2]
[320087837,1711144251542,-501.33401902,0.00021917,2]
[320087838,1711144251552,-500.0,0.00021917,2]
[320087839,1711144251562,-500.0,0.00021917,2]
[320087840,1711144251573,-500.0,0.00021917,2]
[320087841,1711144251582,-2981.74,0.00021917,2]
[320087842,1711144251592,-2931.11,0.00021917,2]
[320087843,1711144251602,-500.0,0.00021917,2]
[320087844,1711144251613,-500.0,0.00021917,2]
[320087845,1711144251623,-721.03,0.00021917,2]
[320087846,1711144251633,-651.63,0.00021917,2]
[320087847,1711144251642,-564.04,0.00021917,2]
[320087848,1711144251652,-500.0,0.00021917,2]
[320087849,1711144251661,-500.0,0.00021917,2]
[320087850,1711144251672,-500.0,0.00021917,2]
[320087851,1711144251682,-922.87,0.00021917,2]
[320087852,1711144251691,-2962.46,0.00021917,2]
[320087853,1711144251701,-500.0,0.00021917,2]
[320087854,1711144251711,-1257.16,0.00021917,2]
[320087855,1711144251721,-500.0,0.00021917,2]
[320087856,1711144251731,-1146.52,0.00021917,2]
[320087857,1711144251741,-700.35,0.00021917,2]
[320087858,1711144251751,-500.0,0.00021917,2]
[320087859,1711144251761,-503.72950988,0.00021917,2]
[320087860,1711144251772,-2652.92,0.00021917,2]
[320087861,1711144251782,-1071.66,0.00021917,2]
[320087862,1711144251791,-500.0,0.00021917,2]
[320087863,1711144251801,-500.0,0.00021917,2]
[320087864,1711144251811,-11658.12,0.00021917,2]
[320087865,1711144251820,-568.18,0.00021917,2]
[320087866,1711144251830,-500.0,0.00021917,2]
[320087867,1711144251839,-503.66695995,0.00021917,2]
[320087868,1711144251849,-4289.08,0.00021917,2]
[320087869,1711144251858,-500.0,0.00021917,2]
[320087870,1711144251867,-500.0,0.00021917,2]
[320087871,1711144251877,-502.37685948,0.00021917,2]
[320087872,1711144251887,-4628.83,0.00021917,2]
[320087873,1711144251897,-500.0,0.00021917,2]
[320087874,1711144251906,-500.0,0.00021917,2]
[320087875,1711144251916,-15699.79,0.00021917,2]
[320087876,1711144251926,-1392.51,0.00021917,2]
[320087877,1711144251935,-500.0,0.00021917,2]
[320087878,1711144251945,-592.75,0.00021917,2]
[320087879,1711144251955,-500.0,0.00021917,2]
[320087880,1711144251964,-500.0,0.00021917,2]
[320087881,1711144251974,-784.3,0.00021917,2]
[320087882,1711144251984,-657.4,0.00021917,2]
[320087883,1711144251994,-500.0,0.00021917,2]
[320087884,1711144252003,-505.60634635,0.00021917,2]
[320087885,1711144252012,-1023.49,0.00021917,2]
[320087886,1711144252022,-500.0,0.00021917,2]
[320087887,1711144252143,-4764.12,0.00021917,2]
[320087888,1711144252153,-500.0,0.00021917,2]
[320087889,1711144252162,-500.29385663,0.00021917,2]
[320087890,1711144252171,-959.53,0.00021917,2]
[320087891,1711144252180,-500.0,0.00021917,2]
[320087892,1711144252190,-500.0,0.00021917,2]
[320087893,1711144252200,-500.0,0.00021917,2]
[320087894,1711144252209,-500.0,0.00021917,2]
[320087895,1711144252219,-1192.65,0.00021917,2]
[320087896,1711144252228,-4183.74,0.00021917,2]
[320087897,1711144252238,-500.0,0.00021917,2]
[320087898,1711144252247,-649.61,0.00021917,2]
[320087899,1711144252257,-1382.24,0.00021917,2]
[320087900,1711144252267,-500.0,0.00021917,2]
[320087901,1711144252276,-1142.99,0.00021917,2]
[320087902,1711144252285,-500.0,0.00021917,2]
[320087903,1711144252295,-9690.91,0.00021917,2]
[320087904,1711144252304,-500.0,0.00021917,2]
[320087905,1711144252313,-500.0,0.00021917,2]
[320087906,1711144252323,-500.0,0.00021917,2]
[320087907,1711144252332,-1581.27,0.00021917,2]
[320087908,1711144252341,-2720.22,0.00021917,2]
[320087909,1711144252350,-3058.9,0.00021917,2]
[320087910,1711144252359,-500.0,0.00021917,2]
[320087911,1711144252368,-500.0,0.00021917,2]
[320087912,1711144252378,-500.43935752,0.00021917,2]
[320087913,1711144252387,-3647.73,0.00021917,2]
[320087914,1711144252396,-500.0,0.00021917,2]
[320087915,1711144252406,-500.0,0.00021917,2]
[320087916,1711144252415,-1377.36,0.00021917,2]
[320087917,1711144252424,-1782.71,0.00021917,2]
[320087918,1711144252433,-1721.2,0.00021917,2]
[320087919,1711144252442,-500.0,0.00021917,2]
[320087920,1711144252451,-500.0,0.00021917,2]
[320087921,1711144252460,-500.0,0.00021917,2]
[320087922,1711144252470,-500.0,0.00021917,2]
[320087923,1711144252479,-648.61,0.00021917,2]
[320087924,1711144252488,-500.0,0.00021917,2]
[320087925,1711144252497,-282.13011576,0.00021917,2]
[320087926,1711144252506,-500.0,0.00021917,2]
[320087927,1711144252520,-1837.63,0.00021917,2]
[320087928,1711144252529,-501.04553143,0.00021917,2]
[320087929,1711144252539,-500.0,0.00021917,2]
[320087930,1711144252548,-500.0,0.00021917,2]
[320087931,1711144252558,-43168.61,0.00021917,2]
[320087932,1711144252568,-500.0,0.00021917,2]
[320087933,1711144252577,-500.0,0.00021917,2]
[320087934,1711144252587,-6338.25,0.00021917,2]
[320087935,1711144252597,-500.0,0.00021917,2]
[320087936,1711144252608,-500.0,0.00021917,2]
[320087937,1711144252618,-562.6,0.00021917,2]
[320087938,1711144252627,-3156.73,0.00021917,2]
[320087939,1711144252637,-7149.46,0.00021917,2]
[320087940,1711144252646,-500.0,0.00021917,2]
[320087941,1711144252655,-585.36,0.00021917,2]
[320087942,1711144252665,-973.15,0.00021917,2]
[320087943,1711144252674,-500.0,0.00021917,2]
[320087944,1711144252684,-501.4,0.00021917,2]
[320087945,1711144252694,-500.0,0.00021917,2]
[320087946,1711144252703,-1868.0,0.00021917,2]
[320087947,1711144252713,-500.0,0.00021917,2]
[320087948,1711144252722,-1316.32,0.00021917,2]
[320087949,1711144252732,-1875.44,0.00021917,2]
[320087950,1711144252741,-500.0,0.00021917,2]
[320087951,1711144252751,-1796.35,0.00021917,2]
[320087952,1711144252760,-325.7333161,0.00021917,2]
[320087953,1711144252770,-500.0,0.00021917,2]
[320087954,1711144252779,-2811.0,0.00021917,2]
[320087955,1711144252789,-500.0,0.00021917,2]
[320087956,1711144252798,-500.0,0.00021917,2]
[320087957,1711144252808,-500.0,0.00021917,2]
[320087958,1711144252819,-872.47,0.00021917,2]
[320087959,1711144252829,-500.0,0.00021917,2]
[320087960,1711144252838,-3775.74,0.00021917,2]
[320087961,1711144252848,-500.0,0.00021917,2]
[320087962,1711144252858,-500.0,0.00021917,2]
[320087963,1711144252867,-28975.25,0.00021917,2]
[320087964,1711144252878,-7457.35,0.00021917,2]
[320087965,1711144252887,-1959.93,0.00021917,2]
[320087966,1711144252898,-688.03,0.00021917,2]
[320087967,1711144252908,-500.0,0.00021917,2]
[320087968,1711144252919,-500.0,0.00021917,2]
[320087969,1711144252928,-500.0,0.00021917,2]
[320087970,1711144252938,-500.0,0.00021917,2]
[320087971,1711144252947,-500.0,0.00021917,2]
[320087972,1711144252957,-2036.85,0.00021917,2]
[320087973,1711144252967,-10187.51,0.00021917,2]
[320087974,1711144252976,-889.13,0.00021917,2]
[320087975,1711144252985,-500.0,0.00021917,2]
[320087976,1711144252994,-4268.01,0.00021917,2]
[320087977,1711144253003,-500.0,0.00021917,2]
[320087978,1711144253013,-908.19,0.00021917,2]
[320087979,1711144253022,-500.0,0.00021917,2]
[320087980,1711144253031,-3764.6,0.00021917,2]
[320087981,1711144253040,-500.0,0.00021917,2]
[320087982,1711144253049,-445.99877439,0.00021917,2]
[320087983,1711144253058,-500.0,0.00021917,2]
[320087984,1711144253067,-500.0,0.00021917,2]
[320087985,1711144253075,-505.63613712,0.00021917,2]
[320087986,1711144253084,-3678.14,0.00021917,2]
[320087987,1711144253094,-500.0,0.00021917,2]
[320087988,1711144253103,-500.0,0.00021917,2]
[320087989,1711144253113,-3683.2,0.00021917,2]
[320087990,1711144253122,-2176.56,0.00021917,2]
[320087991,1711144253131,-500.0,0.00021917,2]
[320087992,1711144253140,-2352.81,0.00021917,2]
[320087993,1711144253149,-1331.64,0.00021917,2]
[320087994,1711144253158,-506.73957118,0.00021917,2]
[320087995,1711144253167,-2105.76,0.00021917,2]
[320087996,1711144253180,-500.0,0.00021917,2]
[320087997,1711144253190,-500.0,0.00021917,2]
[320087998,1711144253199,-500.0,0.00021917,2]
[320087999,1711144253209,-1223.6,0.00021917,2]
[320088000,1711144253219,-5351.33,0.00021917,2]
[320088001,1711144253228,-500.0,0.00021917,2]
[320088002,1711144253238,-648.25071641,0.00021917,2]
[320088003,1711144253247,-500.0,0.00021917,2]
[320088004,1711144253256,-985.79,0.00021917,2]
[320088005,1711144253267,-684.77,0.00021917,2]
[320088006,1711144253276,-500.0,0.00021917,2]
[320088007,1711144253286,-769.63,0.00021917,2]
[320088008,1711144253295,-4944.41,0.00021917,2]
[320088009,1711144253304,-1033.25,0.00021917,2]
[320088010,1711144253314,-500.0,0.00021917,2]
[320088011,1711144253323,-762.17,0.00021917,2]
[320088012,1711144253333,-4694.36,0.00021917,2]
[320088013,1711144253343,-3966.35,0.00021917,2]
[320088014,1711144253352,-500.0,0.00021917,2]
[320088015,1711144253362,-3130.22,0.00021917,2]
[320088016,1711144253371,-512.61,0.00021917,2]
[320088017,1711144253381,-500.0,0.00021917,2]
[320088018,1711144253390,-500.0,0.00021917,2]
[320088019,1711144253399,-500.0,0.00021917,2]
[320088020,1711144253409,-500.0,0.00021917,2]
[320088021,1711144253418,-880.63,0.00021917,2]
[320088022,1711144253435,-500.0,0.00021917,2]
[320088023,1711144253444,-500.0,0.00021917,2]
[320088024,1711144253454,-500.0,0.00021917,2]
[320088025,1711144253463,-500.0,0.00021917,2]
[320088026,1711144253472,-1367.69,0.00021917,2]
[320088027,1711144253481,-6614.82,0.00021917,2]
[320088028,1711144253490,-3813.2,0.00021917,2]
[320088029,1711144253499,-33464.45,0.00021917,2]
[320088030,1711144253509,-978.26,0.00021917,2]
[320088031,1711144253520,-7993.34,0.00021917,2]
[320088032,1711144253532,-17253.35,0.00021917,2]
[320088033,1711144253541,-771.59,0.00021917,2]
[320088034,1711144253551,-758.14,0.00021917,2]
[320088035,1711144253560,-500.0,0.00021917,2]
[320088036,1711144253571,-500.0,0.00021917,2]
[320088037,1711144253580,-501.78578624,0.00021917,2]
[320088038,1711144253589,-2496.33,0.00021917,2]
[320088039,1711144253598,-1245.48,0.00021917,2]
[320088040,1711144253607,-500.0,0.00021917,2]
[320088041,1711144253617,-4176.53,0.00021917,2]
[320088042,1711144253625,-2255.36,0.00021917,2]
[320088043,1711144253635,-900.2,0.00021917,2]
[320088044,1711144253643,-4533.94,0.00021917,2]
[320088045,1711144253652,-500.0,0.00021917,2]
[320088046,1711144253661,-19826.76,0.00021917,2]
[320088047,1711144253670,-500.0,0.00021917,2]
[320088048,1711144253679,-2435.29,0.00021917,2]
[320088049,1711144253688,-506.6644449,0.00021917,2]
[320088050,1711144253697,-500.0,0.00021917,2]
[320088051,1711144253706,-2625.93,0.00021917,2]
[320088052,1711144253715,-352.00188333,0.00021917,2]
[320088053,1711144253724,-1795.24,0.00021917,2]
[320088054,1711144253733,-500.0,0.00021917,2]
[320088055,1711144253743,-792.64,0.00021917,2]
[320088056,1711144253752,-580.71,0.00021917,2]
[320088057,1711144253762,-528.13,0.00021917,2]
[320088058,1711144253771,-648.98,0.00021917,2]
[320088059,1711144253780,-577.09,0.00021917,2]
[320088060,1711144253789,-500.0,0.00021917,2]
[320088061,1711144253799,-1599.26,0.00021917,2]
[320088062,1711144253808,-192.53985907,0.00021917,2]
[320088063,1711144253817,-500.0,0.00021917,2]
[320088064,1711144253826,-20558.3,0.00021917,2]
[320088065,1711144253835,-19923.35,0.00021917,2]
[320088066,1711144253844,-8430.72,0.00021917,2]
[320088067,1711144253853,-500.0,0.00021917,2]
[320088068,1711144253862,-500.0,0.00021917,2]
[320088069,1711144253871,-500.0,0.00021917,2]
[320088070,1711144253881,-500.0,0.00021917,2]
[320088071,1711144253890,-2159.48,0.00021917,2]
[320088072,1711144253899,-23331.43,0.00021917,2]
[320088073,1711144253908,-4891.42,0.00021917,2]
[320088074,1711144253918,-500.0,0.00021917,2]
[320088075,1711144253927,-500.0,0.00021917,2]
[320088076,1711144253936,-5741.35,0.00021917,2]
[320088077,1711144253946,-500.0,0.00021917,2]
[320088078,1711144253955,-500.0,0.00021917,2]
[320088079,1711144253964,-528.68228282,0.00021917,2]
[320088080,1711144253974,-7219.41,0.00021917,2]
[320088081,1711144253983,-500.0,0.00021917,2]
[320088082,1711144253992,-13467.45,0.00021917,2]
[320088083,1711144254003,-500.0,0.00021917,2]
[320088084,1711144254013,-500.0,0.00021917,2]
[320088085,1711144254022,-845.09,0.00021917,2]
[320088086,1711144254031,-500.0,0.00021917,2]
[320088087,1711144254040,-500.0,0.00021917,2]
[320088088,1711144254050,-5125.85,0.00021917,2]
[320088089,1711144254059,-500.0,0.00021917,2]
[320088090,1711144254068,-904.0,0.00021917,2]
[320088091,1711144254077,-1175.2,0.00021917,2]
[320088092,1711144254086,-5404.58,0.00021917,2]
[320088093,1711144254096,-500.0,0.00021917,2]
[320088094,1711144254106,-4950.74,0.00021917,2]
[320088095,1711144254115,-1044.91,0.00021917,2]
[320088096,1711144254125,-5881.54,0.00021917,2]
[320088097,1711144254134,-500.0,0.00021917,2]
[320088098,1711144254143,-1510.29,0.00021917,2]
[320088099,1711144254153,-500.0,0.00021917,2]
[320088100,1711144254163,-574.81,0.00021917,2]
[320088101,1711144254173,-1012.45,0.00021917,2]
[320088102,1711144254183,-500.0,0.00021917,2]
[320088103,1711144254193,-500.0,0.00021917,2]
[320088104,1711144254204,-4916.22,0.00021917,2]
[320088105,1711144254215,-1187.1,0.00021917,2]
[320088106,1711144254224,-1478.79,0.00021917,2]
[320088107,1711144254234,-1416.23,0.00021917,2]
[320088108,1711144254245,-508.60897523,0.00021917,2]
[320088109,1711144254255,-500.0,0.00021917,2]
[320088110,1711144254264,-500.0,0.00021917,2]
[320088111,1711144254273,-2878.26,0.00021917,2]
[320088112,1711144254282,-500.0,0.00021917,2]
[320088113,1711144254292,-500.0,0.00021917,2]
[320088114,1711144254301,-1242.35,0.00021917,2]
[320088115,1711144254310,-1219.9,0.00021917,2]
[320088116,1711144254319,-500.0,0.00021917,2]
[320088117,1711144254329,-500.0,0.00021917,2]
[320088118,1711144254338,-560.06,0.00021917,2]
[320088119,1711144254347,-500.0,0.00021917,2]
[320088120,1711144254356,-500.0,0.00021917,2]
[320088121,1711144254366,-500.0,0.00021917,2]
[320088122,1711144254375,-818.29,0.00021917,2]
[320088123,1711144254385,-2926.94,0.00021917,2]
[320088124,1711144254394,-559.04,0.00021917,2]
[320088125,1711144254403,-500.0,0.00021917,2]
[320088126,1711144254412,-500.0,0.00021917,2]
[320088127,1711144254421,-500.0,0.00021917,2]
[320088128,1711144254430,-500.0,0.00021917,2]
[320088129,1711144254440,-500.0,0.00021917,2]
[320088130,1711144254449,-988.83,0.00021917,2]
[320088131,1711144254460,-1276.62,0.00021917,2]
[320088132,1711144254470,-3288.23,0.00021917,2]
[320088133,1711144254481,-500.0,0.00021917,2]
[320088134,1711144254491,-500.0,0.00021917,2]
[320088135,1711144254500,-505.13276647,0.00021917,2]
[320088136,1711144254510,-1332.71,0.00021917,2]
[320088137,1711144254525,-3995.67,0.00021917,2]
[320088138,1711144254534,-557.63,0.00021917,2]
[320088139,1711144254543,-500.0,0.00021917,2]
[320088140,1711144254553,-2974.03,0.00021917,2]
[320088141,1711144254563,-1012.07,0.00021917,2]
[320088142,1711144254573,-500.0,0.00021917,2]
[320088143,1711144254582,-5122.37,0.00021917,2]
[320088144,1711144254591,-1245.0,0.00021917,2]
[320088145,1711144254601,-3339.42,0.00021917,2]
[320088146,1711144254612,-2368.74,0.00021917,2]
[320088147,1711144254621,-3572.38,0.00021917,2]
[320088148,1711144254630,-982.37,0.00021917,2]
[320088149,1711144254641,-1574.34,0.00021917,2]
[320088150,1711144254650,-500.0,0.00021917,2]
[320088151,1711144254659,-500.0,0.00021917,2]
[320088152,1711144254669,-500.0,0.00021917,2]
[320088153,1711144254679,-500.0,0.00021917,2]
[320088154,1711144254688,-500.0,0.00021917,2]
[320088155,1711144254698,-2174.12,0.00021917,2]
[320088156,1711144254707,-500.0,0.00021917,2]
[320088157,1711144254716,-500.0,0.00021917,2]
[320088158,1711144254725,-500.0,0.00021917,2]
[320088159,1711144254734,-4569.96,0.00021917,2]
[320088160,1711144254743,-3987.52,0.00021917,2]
[320088161,1711144254753,-500.0,0.00021917,2]
[320088162,1711144254762,-3360.63,0.00021917,2]
[320088163,1711144254774,-506.95,0.00021917,2]
[320088164,1711144254783,-1050.88,0.00021917,2]
[320088165,1711144254793,-500.0,0.00021917,2]
[320088166,1711144254802,-500.0,0.00021917,2]
[320088167,1711144254811,-508.4726796,0.00021917,2]
[320088168,1711144254820,-500.0,0.00021917,2]
[320088169,1711144254830,-6263.3,0.00021917,2]
[320088170,1711144254839,-2104.72,0.00021917,2]
[320088171,1711144254848,-2567.06,0.00021917,2]
[320088172,1711144254858,-500.0,0.00021917,2]
[320088173,1711144254867,-505.9122871,0.00021917,2]
[320088174,1711144254877,-3746.67,0.00021917,2]
[320088175,1711144254886,-622.08,0.00021917,2]
[320088176,1711144254895,-1112.84,0.00021917,2]
[320088177,1711144254905,-500.0,0.00021917,2]
[320088178,1711144254915,-674.55,0.00021917,2]
[320088179,1711144254925,-467.72206249,0.00021917,2]
[320088180,1711144254935,-500.0,0.00021917,2]